[Event "LTU-ch Women 2019"]
[Site "Vilnius"]
[Date "2019.03.18"]
[Round "4.3"]
[White "Ravlusevic, Evelina"]
[Black "Ditmonaite, Viktorija"]
[Result "1/2-1/2"]
[ECO "E10"]
[WhiteElo "1704"]
[BlackElo "1871"]
[Annotator "NA RC"]
[PlyCount "140"]
[EventDate "2019.??.??"]
[EventCountry "LTU"]
[SourceTitle "playchess.com"]
[Source "ChessBase"]
[SourceQuality "1"]
[TimeControl "5400+30"]

1. d4 {[%emt 0:00:00]} Nf6 {[%emt 0:00:00]} 2. c4 {[%emt 0:00:00]} e6 {[%emt 0:00:00]} 3. Nf3 {[%emt 0:00:00]} c5 {[%emt 0:00:00]} 4. d5 {[%emt 0:00:04]} b5 {[%emt 0:01:55]} 5. e3 {[%emt 0:05:30]} bxc4 {[%emt 0:01:44]} 6. Bxc4 {[%emt 0:07:00]} Bb7 {[%emt 0:01:17]} 7. Nc3 {[%emt 0:00:57]} Ba6 {[%emt 0:13:11]} 8. Nd2 {[%emt 0:04:46]} Bxc4 {[%emt 0:06:58]} 9. Nxc4 {[%emt 0:00:15]} d6 {[%emt 0:02:45]} 10. O-O {[%emt 0:04:23]} Be7 {[%emt 0:03:31]} 11. Qf3 {[%emt 0:03:24]} Nbd7 {[%emt 0:01:46]} 12. dxe6 {[%emt 0:02:04]} fxe6 {[%emt 0:00:12]} 13. Qc6 {[%emt 0:06:07]} d5 {[%emt 0:04:27]} 14. Nb5 {[%emt 0:02:18]} O-O {[%emt 0:24:50]} 15. Qxe6+ {[%emt 0:01:01]} Kh8 {[%emt 0:00:26]} 16. Ncd6 {[%emt 0:00:45]} Bxd6 {[%emt 0:02:51]} 17. Nxd6 {[%emt 0:00:09]} Qb6 {[%emt 0:01:55]} 18. Nf7+ {[%emt 0:03:52]} Kg8 {[%emt 0:01:12]} 19. Ng5+ {[%emt 0:02:42]} Qxe6 {[%emt 0:00:02]} 20. Nxe6 {[%emt 0:00:02]} Rf7 {[%emt 0:01:05]} 21. Rd1 {[%emt 0:01:18]} Rc8 {[%emt 0:02:51]} 22. Bd2 {[%emt 0:03:11]} Ne4 {[%emt 0:04:06]} 23. Be1 {[%emt 0:04:14]} Nb6 {[%emt 0:01:03]} 24. f3 {[%emt 0:02:02]} Nf6 {[%emt 0:00:46]} 25. Nf4 {[%emt 0:01:08]} Rd7 {[%emt 0:00:55]} 26. Bc3 {[%emt 0:00:57]} Kf7 {[%emt 0:01:22]} 27. a4 {[%emt 0:00:49]} Nc4 {[%emt 0:02:13]} 28. Kf2 {[%emt 0:00:50]} d4 {[%emt 0:01:42]} 29. exd4 {[%emt 0:00:34]} cxd4 {[%emt 0:00:02]} 30. Rxd4 {[%emt 0:01:10]} Rxd4 {[%emt 0:00:19]} 31. Bxd4 {[%emt 0:00:03]} Nxb2 {[%emt 0:01:25]} 32. Ne2 {[%emt 0:04:08]} Nd3+ {[%emt 0:02:59]} 33. Ke3 {[%emt 0:00:48]} Nc5 {[%emt 0:00:19]} 34. Nc3 {[%emt 0:05:03]} Re8+ {[%emt 0:05:14]} 35. Kf2 {[%emt 0:00:47]} Nb3 {[%emt 0:00:10]} 36. Rd1 {[%emt 0:00:23]} Nxd4 {[%emt 0:01:42]} 37. Rxd4 {[%emt 0:00:07]} Re7 {[%emt 0:01:07]} 38. Nb5 {[%emt 0:01:18]} Kg6 {[%emt 0:01:47]} 39. Rd8 {[%emt 0:01:56]} a6 {[%emt 0:00:20]} 40. Nd4 {[%emt 0:04:34]} Re5 {[%emt 0:01:24]} 41. Nb3 {[%emt 0:01:02]} Re6 {[%emt 0:02:17]} 42. a5 {[%emt 0:00:28]} Re5 {[%emt 0:00:38]} 43. Rd6 {[%emt 0:00:57]} Rb5 {[%emt 0:01:25]} 44. Rb6 {[%emt 0:00:14]} Rxb6 {[%emt 0:00:46]} 45. axb6 {[%emt 0:00:02]} Nd7 {[%emt 0:00:05]} 46. b7 {[%emt 0:00:11]} Kf5 {[%emt 0:00:23]} 47. Ke3 {[%emt 0:00:56]} Ke5 {[%emt 0:00:02]} 48. f4+ {[%emt 0:05:01]} Kd5 {[%emt 0:00:04]} 49. Nd4 {[%emt 0:00:21]} a5 {[%emt 0:01:37]} 50. g4 {[%emt 0:01:42]} a4 {[%emt 0:00:26]} 51. Nf5 {[%emt 0:00:31]} a3 {[%emt 0:00:55]} 52. Nd4 {[%emt 0:00:11]} a2 {[%emt 0:00:24]} 53. Nc2 {[%emt 0:00:43]} Kc6 {[%emt 0:00:56]} 54. Nb4+ {[%emt 0:00:11]} Kxb7 {[%emt 0:00:04]} 55. Nxa2 {[%emt 0:00:08]} Kc6 {[%emt 0:00:25]} 56. Nc3 {[%emt 0:00:35]} Nf6 {[%emt 0:00:42]} 57. g5 {[%emt 0:02:18]} Ng4+ {[%emt 0:01:00]} 58. Ke4 {[%emt 0:00:09]} Nxh2 {[%emt 0:00:20]} 59. Ke5 {[%emt 0:00:23]} Kd7 {[%emt 0:00:57]} 60. Kf5 {[%emt 0:00:20]} Ke7 {[%emt 0:00:25]} 61. Nd5+ {[%emt 0:01:09]} Kf7 {[%emt 0:00:07]} 62. Ke4 {[%emt 0:00:27]} Nf1 {[%emt 0:01:49]} 63. f5 {[%emt 0:01:44]} Ng3+ {[%emt 0:00:06]} 64. Ke5 {[%emt 0:00:13]} Nh5 {[%emt 0:00:54]} 65. Ne3 {[%emt 0:00:45]} Ke7 {[%emt 0:00:34]} 66. Ng4 {[%emt 0:02:14]} Kf7 {[%emt 0:00:26]} 67. Kd6 {[%emt 0:01:10]} Ng3 {[%emt 0:01:08]} 68. Ne5+ {[%emt 0:00:18]} Kf8 {[%emt 0:00:19]} 69. Ke6 {[%emt 0:01:28]} Ne4 {[%emt 0:00:12]} 70. g6 {[%emt 0:03:59]} hxg6 {[%emt 0:01:11]} 1/2-1/2

[Event "LTU-ch Women 2019"]
[Site "Vilnius"]
[Date "2019.03.18"]
[Round "4.4"]
[White "Simkunaite, Gabija"]
[Black "Malisauskiene, Marina"]
[Result "1/2-1/2"]
[ECO "C19"]
[WhiteElo "1820"]
[BlackElo "1869"]
[Annotator "NA RC"]
[PlyCount "73"]
[EventDate "2019.??.??"]
[EventCountry "LTU"]
[SourceTitle "playchess.com"]
[Source "ChessBase"]
[SourceQuality "1"]
[TimeControl "5400+30"]

1. e4 {[%emt 0:00:00]} e6 {[%emt 0:00:00]} 2. d4 {[%emt 0:00:00]} d5 {[%emt 0:00:00]} 3. Nc3 {[%emt 0:00:00]} Bb4 {[%emt 0:00:00]} 4. e5 {[%emt 0:00:13]} c5 {[%emt 0:00:01]} 5. a3 {[%emt 0:01:26]} Bxc3+ {[%emt 0:00:28]} 6. bxc3 {[%emt 0:00:06]} Ne7 {[%emt 0:00:13]} 7. Nf3 {[%emt 0:01:51]} Nbc6 {[%emt 0:03:31]} 8. Be2 {[%emt 0:02:31]} Bd7 {[%emt 0:03:18]} 9. O-O {[%emt 0:01:30]} Qa5 {[%emt 0:03:56]} 10. Bd2 {[%emt 0:04:34]} c4 {[%emt 0:04:11]} 11. Re1 {[%emt 0:05:58]} h6 {[%emt 0:03:38]} 12. Bf1 {[%emt 0:05:12]} O-O-O {[%emt 0:05:08]} 13. h3 {[%emt 0:07:34]} Rdf8 {[%emt 0:03:45]} 14. Nh2 {[%emt 0:02:16]} h5 {[%emt 0:04:15]} 15. Be2 {[%emt 0:06:36]} g6 {[%emt 0:00:48]} 16. f4 {[%emt 0:12:42]} f6 {[%emt 0:04:58]} 17. Nf3 {[%emt 0:02:24]} fxe5 {[%emt 0:04:51]} 18. fxe5 {[%emt 0:02:00]} Nf5 {[%emt 0:00:16]} 19. h4 {[%emt 0:02:44]} Nd8 {[%emt 0:07:35]} 20. Kh2 {[%emt 0:04:31]} Nf7 {[%emt 0:00:28]} 21. g3 {[%emt 0:00:34]} N7h6 {[%emt 0:02:38]} 22. Bxh6 {[%emt 0:00:38]} Nxh6 {[%emt 0:00:12]} 23. Qd2 {[%emt 0:00:13]} Ng4+ {[%emt 0:02:33]} 24. Kg2 {[%emt 0:00:11]} Rf5 {[%emt 0:03:39]} 25. Rf1 {[%emt 0:05:12]} Rhf8 {[%emt 0:00:36]} 26. Bd1 {[%emt 0:03:44]} a6 {[%emt 0:01:00]} 27. Be2 {[%emt 0:00:32]} Kc7 {[%emt 0:13:51]} 28. Bd1 {[%emt 0:04:11]} Ba4 {[%emt 0:08:33]} 29. Ra2 {[%emt 0:00:59]} Kd7 {[%emt 0:00:50]} 30. Be2 {[%emt 0:01:45]} Qb6 {[%emt 0:03:54]} 31. Qc1 {[%emt 0:03:34]} Qd8 {[%emt 0:03:47]} 32. Kg1 {[%emt 0:02:59]} Qe7 {[%emt 0:01:39]} 33. Kg2 {[%emt 0:04:18]} R8f7 {[%emt 0:00:50]} 34. Qd2 {[%emt 0:00:36]} Qf8 {[%emt 0:00:49]} 35. Bd1 {[%emt 0:01:16]} Kc6 {[%emt 0:06:30]} 36. Be2 {[%emt 0:00:34]} b5 {[%emt 0:00:12]} 37. Bd1 {[%emt 0:00:11]} 1/2-1/2

[Event "LTU-ch Women 2019"]
[Site "Vilnius"]
[Date "2019.03.18"]
[Round "4.5"]
[White "Butvilaite, Berta Reja"]
[Black "Maziukaite, Kristina"]
[Result "1-0"]
[ECO "B18"]
[WhiteElo "1809"]
[BlackElo "1491"]
[Annotator "NA RC"]
[PlyCount "65"]
[EventDate "2019.??.??"]
[EventCountry "LTU"]
[SourceTitle "playchess.com"]
[Source "ChessBase"]
[SourceQuality "1"]
[TimeControl "5400+30"]

1. e4 {[%emt 0:00:00]} c6 {[%emt 0:00:00]} 2. d4 {[%emt 0:00:30]} d5 {[%emt 0:00:30]} 3. Nc3 {[%emt 0:00:30]} dxe4 {[%emt 0:00:30]} 4. Nxe4 {[%emt 0:00:30]} Bf5 {[%emt 0:00:30]} 5. Ng3 {[%emt 0:00:30]} Bg6 {[%emt 0:00:30]} 6. h4 {[%emt 0:00:30]} h6 {[%emt 0:00:30]} 7. h5 {[%emt 0:00:30]} Bh7 {[%emt 0:00:30]} 8. Nf3 {[%emt 0:00:30]} Nd7 {[%emt 0:00:30]} 9. Bd3 {[%emt 0:00:30]} Bxd3 {[%emt 0:00:30]} 10. Qxd3 {[%emt 0:00:30]} Ngf6 {[%emt 0:00:35]} 11. Bd2 {[%emt 0:01:13]} Qc7 {[%emt 0:01:02]} 12. O-O-O {[%emt 0:02:38]} e6 {[%emt 0:01:47]} 13. Rhe1 {[%emt 0:22:55]} O-O-O {[%emt 0:04:58]} 14. Qb3 {[%emt 0:01:31]} Bd6 {[%emt 0:03:06]} 15. Ne4 {[%emt 0:08:23]} Nxh5 {[%emt 0:04:12]} 16. Qa4 {[%emt 0:02:49]} Kb8 {[%emt 0:06:01]} 17. Nxd6 {[%emt 0:04:27]} Qxd6 {[%emt 0:00:30]} 18. Ne5 {[%emt 0:00:34]} Qe7 {[%emt 0:11:34]} 19. Bb4 {[%emt 0:04:10]} Qg5+ {[%emt 0:01:13]} 20. Kb1 {[%emt 0:01:15]} Nxe5 {[%emt 0:01:36]} 21. dxe5 {[%emt 0:02:33]} Rxd1+ {[%emt 0:04:06]} 22. Rxd1 {[%emt 0:00:30]} Rd8 {[%emt 0:03:30]} 23. Bd6+ {[%emt 0:00:56]} Ka8 {[%emt 0:00:30]} 24. a3 {[%emt 0:00:58]} Nf4 {[%emt 0:02:48]} 25. Rd4 {[%emt 0:01:23]} Ng6 {[%emt 0:04:07]} 26. f4 {[%emt 0:01:59]} Qh4 {[%emt 0:30:50]} 27. g3 {[%emt 0:02:09]} Qh1+ {[%emt 0:02:23]} 28. Ka2 {[%emt 0:00:30]} Rc8 {[%emt 0:00:30]} 29. Bc5 {[%emt 0:00:30]} a6 {[%emt 0:00:53]} 30. Qa5 {[%emt 0:00:30]} Qc1 {[%emt 0:05:21]} 31. Qb6 {[%emt 0:00:30]} Kb8 {[%emt 0:00:30]} 32. Qa7+ {[%emt 0:00:30]} Kc7 {[%emt 0:00:30]} 33. Bb6# {[%emt 0:00:30]} 1-0

[Event "LTU-ch Women 2019"]
[Site "Vilnius"]
[Date "2019.03.18"]
[Round "4.6"]
[White "Plutaite, Ausra"]
[Black "Perminaite, Guoda"]
[Result "0-1"]
[ECO "C21"]
[WhiteElo "1378"]
[BlackElo "1814"]
[Annotator "NA RC"]
[PlyCount "140"]
[EventDate "2019.??.??"]
[EventCountry "LTU"]
[SourceTitle "playchess.com"]
[Source "ChessBase"]
[SourceQuality "1"]
[TimeControl "5400+30"]

1. e4 {[%emt 0:00:00]} e5 {[%emt 0:00:00]} 2. d4 {[%emt 0:00:00]} exd4 {[%emt 0:00:02]} 3. c3 {[%emt 0:00:00]} d3 {[%emt 0:04:41]} 4. Bxd3 {[%emt 0:00:00]} Nc6 {[%emt 0:00:23]} 5. Nf3 {[%emt 0:01:43]} d6 {[%emt 0:03:04]} 6. Qb3 {[%emt 0:01:16]} h6 {[%emt 0:06:46]} 7. O-O {[%emt 0:01:30]} Qd7 {[%emt 0:08:34]} 8. Bf4 {[%emt 0:03:42]} g5 {[%emt 0:09:11]} 9. Bg3 {[%emt 0:00:42]} Bg7 {[%emt 0:00:57]} 10. Nbd2 {[%emt 0:02:30]} Nge7 {[%emt 0:02:17]} 11. Bb5 {[%emt 0:09:45]} a6 {[%emt 0:01:52]} 12. Bc4 {[%emt 0:00:31]} O-O {[%emt 0:01:01]} 13. Rfe1 {[%emt 0:02:27]} Na5 {[%emt 0:07:35]} 14. Qc2 {[%emt 0:00:45]} Nxc4 {[%emt 0:02:00]} 15. Nxc4 {[%emt 0:00:08]} b5 {[%emt 0:00:58]} 16. Na5 {[%emt 0:01:49]} Nc6 {[%emt 0:05:11]} 17. Nb3 {[%emt 0:02:36]} Bb7 {[%emt 0:14:32]} 18. Rad1 {[%emt 0:02:24]} Qe6 {[%emt 0:03:11]} 19. e5 {[%emt 0:06:04]} Nxe5 {[%emt 0:08:19]} 20. Nxe5 {[%emt 0:00:46]} dxe5 {[%emt 0:00:28]} 21. Nc5 {[%emt 0:00:38]} Qc6 {[%emt 0:00:21]} 22. Nxb7 {[%emt 0:00:26]} Qxb7 {[%emt 0:00:10]} 23. Bxe5 {[%emt 0:00:04]} Rfe8 {[%emt 0:03:22]} 24. Bg3 {[%emt 0:02:36]} Qc6 {[%emt 0:02:46]} 25. h4 {[%emt 0:02:15]} gxh4 {[%emt 0:03:23]} 26. Bxh4 {[%emt 0:00:08]} Qc4 {[%emt 0:00:14]} 27. Bg3 {[%emt 0:02:59]} c5 {[%emt 0:01:32]} 28. a3 {[%emt 0:01:51]} Qg4 {[%emt 0:04:59]} 29. Qd3 {[%emt 0:02:13]} c4 {[%emt 0:01:35]} 30. Qd6 {[%emt 0:01:26]} Qh5 {[%emt 0:02:26]} 31. Qc6 {[%emt 0:01:00]} Rec8 {[%emt 0:00:39]} 32. Qd5 {[%emt 0:01:33]} Qxd5 {[%emt 0:01:19]} 33. Rxd5 {[%emt 0:00:04]} Rc6 {[%emt 0:00:24]} 34. Red1 {[%emt 0:00:38]} Re8 {[%emt 0:00:25]} 35. Kf1 {[%emt 0:00:06]} Ree6 {[%emt 0:01:00]} 36. Bf4 {[%emt 0:01:18]} Kh7 {[%emt 0:00:55]} 37. Rd6 {[%emt 0:03:44]} Rcxd6 {[%emt 0:00:58]} 38. Rxd6 {[%emt 0:00:04]} Kg6 {[%emt 0:00:45]} 39. g4 {[%emt 0:01:54]} Rxd6 {[%emt 0:00:23]} 40. Bxd6 {[%emt 0:00:04]} Kg5 {[%emt 0:00:14]} 41. f3 {[%emt 0:00:17]} f5 {[%emt 0:00:48]} 42. gxf5 {[%emt 0:01:02]} Kxf5 {[%emt 0:00:07]} 43. Kg2 {[%emt 0:00:38]} Bf6 {[%emt 0:00:19]} 44. f4 {[%emt 0:05:41]} Kg4 {[%emt 0:01:11]} 45. Bc7 {[%emt 0:02:03]} Bh4 {[%emt 0:00:26]} 46. f5 {[%emt 0:02:46]} Kxf5 {[%emt 0:00:08]} 47. Kf3 {[%emt 0:00:06]} Bg5 {[%emt 0:00:10]} 48. Bd6 {[%emt 0:02:25]} Bc1 {[%emt 0:00:21]} 49. Bf8 {[%emt 0:00:21]} h5 {[%emt 0:01:04]} 50. Ke2 {[%emt 0:01:08]} Ke4 {[%emt 0:00:07]} 51. Kd1 {[%emt 0:00:16]} Bf4 {[%emt 0:00:21]} 52. Be7 {[%emt 0:00:38]} Bg3 {[%emt 0:00:27]} 53. Kc2 {[%emt 0:00:10]} h4 {[%emt 0:00:13]} 54. Bxh4 {[%emt 0:00:05]} Bxh4 {[%emt 0:00:12]} 55. b3 {[%emt 0:00:04]} Be7 {[%emt 0:00:45]} 56. a4 {[%emt 0:00:49]} Bg5 {[%emt 0:00:51]} 57. a5 {[%emt 0:01:39]} Bd8 {[%emt 0:00:31]} 58. b4 {[%emt 0:00:37]} Bg5 {[%emt 0:00:04]} 59. Kb1 {[%emt 0:01:03]} Kd3 {[%emt 0:00:05]} 60. Ka2 {[%emt 0:00:12]} Kxc3 {[%emt 0:00:12]} 61. Ka3 {[%emt 0:00:06]} Bc1+ {[%emt 0:00:17]} 62. Ka2 {[%emt 0:00:14]} Kxb4 {[%emt 0:00:08]} 63. Ka1 {[%emt 0:00:48]} Kxa5 {[%emt 0:00:32]} 64. Ka2 {[%emt 0:00:07]} Ka4 {[%emt 0:00:06]} 65. Ka1 {[%emt 0:00:12]} Ka3 {[%emt 0:00:08]} 66. Kb1 {[%emt 0:00:05]} Bb2 {[%emt 0:00:05]} 67. Kc2 {[%emt 0:00:16]} b4 {[%emt 0:00:20]} 68. Kb1 {[%emt 0:00:04]} c3 {[%emt 0:00:08]} 69. Kc2 {[%emt 0:00:11]} b3+ {[%emt 0:00:05]} 70. Kb1 {[%emt 0:00:12]} c2# {[%emt 0:00:06]} 0-1

[Event "LTU-ch Women 2019"]
[Site "Vilnius"]
[Date "2019.03.19"]
[Round "5.1"]
[White "Kaspute, Vesta"]
[Black "Sibajeva, Marija"]
[Result "0-1"]
[ECO "B43"]
[WhiteElo "2037"]
[BlackElo "2023"]
[Annotator "NA"]
[PlyCount "66"]
[EventDate "2019.??.??"]
[EventCountry "LTU"]
[SourceTitle "playchess.com"]
[Source "ChessBase"]
[SourceQuality "1"]
[TimeControl "5400+30"]

1. e4 {[%emt 0:00:00]} c5 {[%emt 0:00:00]} 2. Nf3 {[%emt 0:00:00]} e6 {[%emt 0:00:00]} 3. d4 {[%emt 0:00:00]} cxd4 {[%emt 0:00:02]} 4. Nxd4 {[%emt 0:00:00]} a6 {[%emt 0:00:09]} 5. Nc3 {[%emt 0:02:55]} b5 {[%emt 0:00:08]} 6. Bd3 {[%emt 0:16:16]} Qb6 {[%emt 0:00:15]} 7. Nb3 {[%emt 0:01:36]} Qc7 {[%emt 0:02:23]} 8. O-O {[%emt 0:02:46]} Nf6 {[%emt 0:00:30]} 9. Qe2 {[%emt 0:20:07]} d6 {[%emt 0:00:33]} 10. Bd2 {[%emt 0:04:57]} Be7 {[%emt 0:02:27]} 11. a4 {[%emt 0:03:43]} b4 {[%emt 0:09:13]} 12. Na2 {[%emt 0:00:58]} a5 {[%emt 0:00:29]} 13. c3 {[%emt 0:04:14]} bxc3 {[%emt 0:02:38]} 14. Nxc3 {[%emt 0:00:04]} Nc6 {[%emt 0:02:48]} 15. Rac1 {[%emt 0:07:50]} Qb7 {[%emt 0:04:09]} 16. Bb5 {[%emt 0:16:45]} Bd7 {[%emt 0:00:54]} 17. f3 {[%emt 0:04:12]} O-O {[%emt 0:04:03]} 18. Bxc6 {[%emt 0:00:10]} Bxc6 {[%emt 0:01:08]} 19. Nd4 {[%emt 0:00:29]} Rfc8 {[%emt 0:09:05]} 20. Ncb5 {[%emt 0:02:34]} Nd7 {[%emt 0:07:35]} 21. Nxc6 {[%emt 0:00:48]} Rxc6 {[%emt 0:00:07]} 22. Rxc6 {[%emt 0:00:07]} Qxc6 {[%emt 0:00:05]} 23. Rc1 {[%emt 0:00:23]} Nc5 {[%emt 0:00:16]} 24. Be3 {[%emt 0:01:15]} Rd8 {[%emt 0:13:20]} 25. e5 {[%emt 0:06:56]} dxe5 {[%emt 0:09:57]} 26. Qc4 {[%emt 0:01:08]} f5 {[%emt 0:03:16]} 27. b4 {[%emt 0:01:16]} axb4 {[%emt 0:00:56]} 28. Qxb4 {[%emt 0:01:39]} f4 {[%emt 0:04:20]} 29. Na7 {[%emt 0:00:29]} Qxa4 {[%emt 0:02:58]} 30. Bxc5 {[%emt 0:00:48]} Qxa7 {[%emt 0:02:22]} 31. Bxa7 {[%emt 0:00:18]} Bxb4 {[%emt 0:00:01]} 32. Rc2 {[%emt 0:00:24]} Rd7 {[%emt 0:05:01]} 33. Bb6 {[%emt 0:00:17]} Kf7 {[%emt 0:01:29]} 0-1

[Event "LTU-ch Women 2019"]
[Site "Vilnius"]
[Date "2019.03.19"]
[Round "5.2"]
[White "Ditmonaite, Viktorija"]
[Black "Butvilaite, Berta Reja"]
[Result "1-0"]
[ECO "D45"]
[WhiteElo "1871"]
[BlackElo "1809"]
[Annotator "NA"]
[PlyCount "71"]
[EventDate "2019.??.??"]
[EventCountry "LTU"]
[SourceTitle "playchess.com"]
[Source "ChessBase"]
[SourceQuality "1"]
[TimeControl "5400+30"]

1. d4 {[%emt 0:12:38]} d5 {[%emt 0:00:00]} 2. c4 {[%emt 0:01:07]} c6 {[%emt 0:00:00]} 3. Nf3 {[%emt 0:00:10]} Nf6 {[%emt 0:00:00]} 4. e3 {[%emt 0:00:32]} e6 {[%emt 0:00:24]} 5. Nc3 {[%emt 0:00:12]} Nbd7 {[%emt 0:00:09]} 6. Qc2 {[%emt 0:00:32]} Bd6 {[%emt 0:00:22]} 7. Bd3 {[%emt 0:01:10]} dxc4 {[%emt 0:00:58]} 8. Bxc4 {[%emt 0:00:02]} b5 {[%emt 0:01:00]} 9. Be2 {[%emt 0:00:03]} O-O {[%emt 0:00:26]} 10. O-O {[%emt 0:00:25]} Qc7 {[%emt 0:01:10]} 11. Rd1 {[%emt 0:02:12]} Bb7 {[%emt 0:03:27]} 12. e4 {[%emt 0:05:51]} e5 {[%emt 0:02:39]} 13. dxe5 {[%emt 0:04:52]} Nxe5 {[%emt 0:03:33]} 14. Nxe5 {[%emt 0:01:52]} Bxe5 {[%emt 0:00:14]} 15. g3 {[%emt 0:00:28]} a6 {[%emt 0:07:49]} 16. Be3 {[%emt 0:09:03]} Bxc3 {[%emt 0:03:38]} 17. bxc3 {[%emt 0:00:15]} c5 {[%emt 0:00:28]} 18. f3 {[%emt 0:04:01]} Rfe8 {[%emt 0:03:05]} 19. Bf4 {[%emt 0:06:40]} Qa5 {[%emt 0:04:54]} 20. c4 {[%emt 0:06:24]} Rac8 {[%emt 0:12:56]} 21. Bd6 {[%emt 0:05:03]} Nd7 {[%emt 0:15:33]} 22. Qb2 {[%emt 0:08:44]} b4 {[%emt 0:03:38]} 23. a3 {[%emt 0:00:42]} Nb6 {[%emt 0:03:56]} 24. axb4 {[%emt 0:01:57]} Qxb4 {[%emt 0:00:14]} 25. Qc2 {[%emt 0:00:31]} Nxc4 {[%emt 0:15:31]} 26. Bxc4 {[%emt 0:03:16]} Qb6 {[%emt 0:00:45]} 27. Qa2 {[%emt 0:03:20]} Kh8 {[%emt 0:01:09]} 28. Bxf7 {[%emt 0:01:16]} c4+ {[%emt 0:01:13]} 29. Qf2 {[%emt 0:02:00]} Qxf2+ {[%emt 0:00:41]} 30. Kxf2 {[%emt 0:00:02]} Red8 {[%emt 0:00:31]} 31. e5 {[%emt 0:00:16]} Bc6 {[%emt 0:02:03]} 32. e6 {[%emt 0:03:39]} Ra8 {[%emt 0:01:32]} 33. e7 {[%emt 0:00:23]} Rdc8 {[%emt 0:00:08]} 34. Bxc4 {[%emt 0:02:14]} Bxf3 {[%emt 0:01:07]} 35. Kxf3 {[%emt 0:00:45]} Rxc4 {[%emt 0:00:11]} 36. Bc5 {[%emt 0:01:20]} 1-0

[Event "LTU-ch Women 2019"]
[Site "Vilnius"]
[Date "2019.03.19"]
[Round "5.3"]
[White "Limontaite, Simona"]
[Black "Ravlusevic, Evelina"]
[Result "1/2-1/2"]
[ECO "A06"]
[WhiteElo "2233"]
[BlackElo "1704"]
[Annotator "NA"]
[PlyCount "57"]
[EventDate "2019.??.??"]
[EventCountry "LTU"]
[SourceTitle "playchess.com"]
[Source "ChessBase"]
[SourceQuality "1"]
[TimeControl "5400+30"]

1. Nf3 {[%emt 0:00:00]} d5 {[%emt 0:00:00]} 2. g3 {[%emt 0:00:00]} Nf6 {[%emt 0:00:00]} 3. Bg2 {[%emt 0:00:00]} c5 {[%emt 0:00:12]} 4. d4 {[%emt 0:00:39]} e6 {[%emt 0:00:30]} 5. O-O {[%emt 0:00:33]} Nc6 {[%emt 0:00:13]} 6. b3 {[%emt 0:04:07]} Be7 {[%emt 0:01:37]} 7. Bb2 {[%emt 0:01:17]} O-O {[%emt 0:00:20]} 8. Nbd2 {[%emt 0:00:26]} Ne4 {[%emt 0:06:49]} 9. dxc5 {[%emt 0:02:05]} Nxc5 {[%emt 0:03:45]} 10. Nd4 {[%emt 0:05:59]} Bf6 {[%emt 0:02:19]} 11. e3 {[%emt 0:01:48]} e5 {[%emt 0:02:31]} 12. Nxc6 {[%emt 0:04:07]} bxc6 {[%emt 0:00:03]} 13. Ba3 {[%emt 0:04:00]} Qa5 {[%emt 0:01:25]} 14. Qc1 {[%emt 0:00:35]} e4 {[%emt 0:02:08]} 15. Rb1 {[%emt 0:12:06]} Bc3 {[%emt 0:08:32]} 16. b4 {[%emt 0:04:58]} Qa4 {[%emt 0:00:20]} 17. Bb2 {[%emt 0:21:52]} Qxb4 {[%emt 0:02:16]} 18. Ba3 {[%emt 0:00:57]} Qa5 {[%emt 0:00:25]} 19. Nb3 {[%emt 0:06:09]} Nxb3 {[%emt 0:02:06]} 20. cxb3 {[%emt 0:00:05]} c5 {[%emt 0:01:05]} 21. Rd1 {[%emt 0:01:34]} Be6 {[%emt 0:00:40]} 22. Bb2 {[%emt 0:00:08]} Bxb2 {[%emt 0:01:43]} 23. Rxb2 {[%emt 0:00:04]} Qb4 {[%emt 0:02:26]} 24. f3 {[%emt 0:01:36]} f5 {[%emt 0:01:34]} 25. Qd2 {[%emt 0:00:28]} a5 {[%emt 0:08:16]} 26. Rc2 {[%emt 0:03:56]} Rac8 {[%emt 0:01:45]} 27. Rdc1 {[%emt 0:01:24]} Rfd8 {[%emt 0:03:18]} 28. Qxb4 {[%emt 0:01:11]} cxb4 {[%emt 0:00:12]} 29. Kf2 {[%emt 0:00:25]} 1/2-1/2

[Event "LTU-ch Women 2019"]
[Site "Vilnius"]
[Date "2019.03.19"]
[Round "5.4"]
[White "Perminaite, Guoda"]
[Black "Ramanauskaite, Giedre"]
[Result "1-0"]
[ECO "C88"]
[WhiteElo "1814"]
[BlackElo "1870"]
[Annotator "NA"]
[PlyCount "75"]
[EventDate "2019.??.??"]
[EventCountry "LTU"]
[SourceTitle "playchess.com"]
[Source "ChessBase"]
[SourceQuality "1"]
[TimeControl "5400+30"]

1. e4 {[%emt 0:00:00]} e5 {[%emt 0:00:00]} 2. Nf3 {[%emt 0:00:00]} Nc6 {[%emt 0:00:00]} 3. Bb5 {[%emt 0:00:00]} a6 {[%emt 0:00:10]} 4. Ba4 {[%emt 0:00:00]} Nf6 {[%emt 0:00:32]} 5. O-O {[%emt 0:00:39]} b5 {[%emt 0:00:53]} 6. Bb3 {[%emt 0:00:08]} Be7 {[%emt 0:00:14]} 7. Re1 {[%emt 0:00:26]} d6 {[%emt 0:00:17]} 8. a4 {[%emt 0:00:17]} Be6 {[%emt 0:00:57]} 9. Bxe6 {[%emt 0:08:41]} fxe6 {[%emt 0:00:08]} 10. Ng5 {[%emt 0:00:47]} Qc8 {[%emt 0:00:55]} 11. axb5 {[%emt 0:00:47]} h6 {[%emt 0:01:56]} 12. Nxe6 {[%emt 0:01:58]} Qxe6 {[%emt 0:00:33]} 13. bxc6 {[%emt 0:00:09]} Qc4 {[%emt 0:00:38]} 14. Nc3 {[%emt 0:04:01]} Qxc6 {[%emt 0:00:15]} 15. d4 {[%emt 0:01:44]} exd4 {[%emt 0:02:27]} 16. Qxd4 {[%emt 0:00:08]} O-O {[%emt 0:00:14]} 17. Nd5 {[%emt 0:12:25]} Nxd5 {[%emt 0:06:10]} 18. Qxd5+ {[%emt 0:00:07]} Qxd5 {[%emt 0:00:24]} 19. exd5 {[%emt 0:00:03]} Bf6 {[%emt 0:01:32]} 20. c3 {[%emt 0:01:26]} Rfb8 {[%emt 0:00:44]} 21. Ra3 {[%emt 0:17:54]} a5 {[%emt 0:03:12]} 22. Re2 {[%emt 0:21:40]} Rb5 {[%emt 0:06:00]} 23. c4 {[%emt 0:00:12]} Rb4 {[%emt 0:00:21]} 24. Rc2 {[%emt 0:00:10]} a4 {[%emt 0:00:16]} 25. Re3 {[%emt 0:01:38]} Kf7 {[%emt 0:01:45]} 26. Kf1 {[%emt 0:09:00]} Rab8 {[%emt 0:00:53]} 27. Ree2 {[%emt 0:03:30]} c6 {[%emt 0:18:02]} 28. Bf4 {[%emt 0:09:05]} cxd5 {[%emt 0:01:29]} 29. Bxd6 {[%emt 0:01:04]} Rxb2 {[%emt 0:02:56]} 30. Bxb8 {[%emt 0:01:12]} Rxb8 {[%emt 0:00:21]} 31. cxd5 {[%emt 0:00:33]} a3 {[%emt 0:00:15]} 32. Rc7+ {[%emt 0:01:41]} Kf8 {[%emt 0:00:33]} 33. Ra7 {[%emt 0:00:43]} Bb2 {[%emt 0:00:08]} 34. d6 {[%emt 0:01:21]} Rc8 {[%emt 0:07:45]} 35. Re1 {[%emt 0:03:00]} Re8 {[%emt 0:03:31]} 36. Rxe8+ {[%emt 0:00:13]} Kxe8 {[%emt 0:00:07]} 37. Ke2 {[%emt 0:00:10]} Be5 {[%emt 0:03:16]} 38. Re7+ {[%emt 0:00:14]} 1-0